bitfinex/quotes_SOLUSD_20250421
["timestamp","ask_amount","ask_price","bid_price","bid_amount"]
[1745233944117,58.14321482,139.49,139.43,6.1267]
[1745233944311,0.14216157,139.44,139.43,6.1267]
[1745233944510,0.14216157,139.44,139.4,1.5521]
[1745233944730,7.17205766,139.43,139.4,1.5521]
[1745233945631,0.14216157,139.42,139.4,1.5521]
[1745233945843,0.14216157,139.42,139.39,6.2022]
[1745233946140,18.79181043,139.42,139.39,6.2022]
[1745233946929,0.14216157,139.4,139.39,6.2022]
[1745233949234,0.14216157,139.41,139.39,6.2022]
[1745233949728,7.17246008,139.43,139.39,6.2022]
[1745233949936,21.43167474,139.44,139.39,6.2022]
[1745233950130,0.14216157,139.43,139.39,13.37626962]
[1745233950429,0.14216157,139.43,139.39,6.2022]
[1745233951349,7.17257208,139.42,139.39,6.2022]
[1745233953968,0.14216157,139.41,139.39,6.2022]
[1745233956072,0.14216157,139.4,139.36,8.75742656]
[1745233957344,0.14216157,139.4,139.36,1.5821]
[1745233957545,18.79181043,139.4,139.36,1.5821]
[1745233957748,0.14216157,139.38,139.36,1.5821]
[1745233958462,14.28,139.39,139.36,1.5821]
[1745233959543,14.28,139.39,139.36,8.75776]
[1745233959756,14.28,139.39,139.36,1.5821]
[1745233960065,0.14216157,139.38,139.36,1.5821]
[1745233960276,7.31692286,139.38,139.36,1.5821]
[1745233960937,36.58349473,139.41,139.36,1.5821]
[1745233960938,14.26,139.43,139.36,1.5821]
[1745233961134,0.14216157,139.42,139.36,1.5821]
[1745233961357,18.79181043,139.42,139.36,1.5821]
[1745233962146,0.14216157,139.4,139.36,1.5821]
[1745233964257,0.14216157,139.39,139.36,1.5821]
[1745233966170,0.14216157,139.39,139.36,1.5821]
[1745233966370,7.04238039,139.42,139.36,1.5821]
[1745233967047,32.19119253,139.43,139.36,1.5821]
[1745233967372,7.17257208,139.42,139.36,1.5821]
[1745233967972,25.10400229,139.42,139.36,1.5821]
[1745233968474,7.17360114,139.4,139.36,1.5821]
[1745233970588,7.31556006,139.41,139.36,8.75774984]
[1745233970751,0.14216157,139.4,139.36,1.5821]
[1745233971561,0.14216157,139.4,139.36,8.75763259]
[1745233971878,0.14216157,139.4,139.36,1.5821]
[1745233972862,0.14216157,139.39,139.36,1.5821]
[1745233975051,7.3163458,139.39,139.36,1.5821]
[1745233976476,0.14216157,139.39,139.36,1.5821]
[1745233976864,7.31628028,139.39,139.36,1.5821]
[1745233978681,0.14216157,139.39,139.36,1.5821]
[1745233979178,0.14216157,139.39,139.36,8.75775785]
[1745233979475,14.28,139.41,139.36,8.75773276]
[1745233979683,0.14216157,139.41,139.36,8.75773276]
[1745233980060,14.28,139.42,139.36,8.75773276]
[1745233980260,0.14216157,139.41,139.36,8.75773276]
[1745233982075,7.31534888,139.41,139.36,1.5821]
[1745233982466,0.14216157,139.41,139.36,8.75767075]
[1745233982784,14.28,139.44,139.37,24.79514886]
[1745233982955,14.28,139.44,139.37,105.49514886]
[1745233984280,14.28,139.44,139.38,7.1746305]
[1745233985372,21.45154961,139.44,139.38,7.1746305]
[1745233985566,0.14216157,139.43,139.38,7.1746305]
[1745233986281,7.31470024,139.43,139.38,7.1746305]
[1745233991509,7.31470024,139.43,139.37,13.32040871]
[1745233991882,7.31470024,139.43,139.37,6.1455]
[1745233992487,0.14216157,139.41,139.36,1.5821]
[1745233993283,0.14216157,139.41,139.36,0.03]
[1745233993605,7.17360114,139.4,139.36,0.03]
[1745233993996,0.14216157,139.38,139.36,0.03]
[1745233995000,14.26,139.39,139.36,0.03]
[1745233995200,0.14216157,139.38,139.36,0.03]
[1745233995803,14.26,139.39,139.36,0.03]
[1745233997006,21.43413543,139.39,139.36,0.03]
[1745233997515,14.26,139.39,139.36,0.03]
[1745233997913,21.43411763,139.39,139.36,0.03]
[1745233998292,0.14216157,139.38,139.36,0.03]
[1745233998501,21.43411763,139.39,139.36,0.03]
[1745233998709,0.14216157,139.38,139.36,0.03]
[1745234002997,14.26,139.39,139.36,0.03]
[1745234003201,17.92767417,139.45,139.36,0.03]
[1745234003407,32.92964886,139.44,139.36,0.03]
[1745234003709,14.28,139.43,139.36,0.03]
[1745234003913,21.45257208,139.42,139.36,7.20566016]
[1745234004213,0.14216157,139.41,139.36,7.20566016]
[1745234004403,7.17257208,139.42,139.37,8.1917]
[1745234004404,14.28,139.42,139.37,8.1917]
[1745234006015,7.17273341,139.42,139.37,8.1917]
[1745234006919,7.17273341,139.42,139.37,15.36682673]
[1745234009318,7.17311252,139.41,139.37,8.1917]
[1745234009995,0.14216157,139.4,139.37,8.1917]
[1745234010195,0.14216157,139.4,139.36,0.03]
[1745234016117,7.31584054,139.4,139.36,0.03]
[1745234021618,0.14216157,139.4,139.36,0.03]
[1745234035626,7.31583006,139.4,139.36,0.03]
[1745234036932,21.43331736,139.41,139.36,0.03]
[1745234037130,0.14216157,139.4,139.36,0.03]
[1745234038226,14.26,139.41,139.36,0.03]
[1745234039722,21.43312634,139.41,139.36,0.03]
[1745234041828,7.17312634,139.41,139.36,0.03]
[1745234042227,0.14216157,139.39,139.36,0.03]
[1745234042937,7.17369061,139.4,139.36,0.03]
[1745234053550,7.1742176,139.39,139.36,0.03]
[1745234058255,7.3158627,139.4,139.36,0.03]
[1745234068687,7.17370113,139.4,139.36,0.03]
[1745234068893,7.31627965,139.39,139.36,0.03]
[1745234069251,7.17411808,139.39,139.36,0.03]
[1745234069678,7.316005,139.4,139.36,0.03]
[1745234072800,0.14216157,139.4,139.36,0.03]
[1745234073078,7.31581766,139.4,139.36,0.03]
[1745234073485,0.14216157,139.4,139.36,0.03]
[1745234074861,14.26,139.41,139.36,0.03]
[1745234075063,0.14216157,139.42,139.36,0.03]
[1745234075377,7.17175307,139.44,139.38,1.5027]
[1745234075588,7.17102904,139.45,139.39,7.17411579]
[1745234076387,0.14216157,139.44,139.39,7.17411579]
[1745234076592,21.43075132,139.46,139.39,7.17411579]
[1745234076881,14.26,139.46,139.39,7.17411579]
[1745234077400,14.26,139.46,139.39,87.87411579]
[1745234077687,21.43063194,139.46,139.39,105.80940526]
[1745234079663,14.26,139.46,139.39,105.80940526]
[1745234080985,21.43051627,139.46,139.39,105.80940526]
[1745234081891,14.26,139.46,139.39,105.80940526]
[1745234083095,21.43063045,139.46,139.39,105.80940526]
[1745234088885,7.1710349,139.45,139.39,87.87411579]
[1745234089669,0.14216157,139.44,139.39,87.87411579]
[1745234089868,0.14216157,139.44,139.39,80.7]
[1745234090995,32.18736363,139.46,139.39,87.87386313]
[1745234091186,7.31319061,139.45,139.39,87.87386313]
[1745234093090,7.31319061,139.45,139.39,7.17386313]
[1745234099396,0.14216157,139.45,139.39,7.17386313]
[1745234099584,21.43071466,139.46,139.39,7.17386313]
[1745234100702,21.43071466,139.46,139.39,25.1091526]
[1745234101984,21.43071466,139.46,139.39,7.17386313]
[1745234102992,7.17154331,139.44,139.39,7.17386313]
[1745234103185,0.14216157,139.45,139.39,7.17386313]
[1745234103186,7.31343569,139.45,139.39,7.17386313]
[1745234108610,25.24100829,139.45,139.38,27.5027]
[1745234108921,0.14216157,139.43,139.36,0.03]
[1745234109095,0.14216157,139.43,139.36,7.20540679]
[1745234110301,0.14216157,139.41,139.36,0.03]
[1745234111910,7.17360114,139.4,139.36,0.03]
[1745234115808,26.0,139.44,139.36,0.03]
[1745234116401,0.14216157,139.43,139.36,0.03]
[1745234117112,7.31461377,139.43,139.36,7.20566016]
[1745234120521,25.24475792,139.43,139.36,0.03]
[1745234129624,0.14216157,139.41,139.36,0.03]
[1745234129826,14.26,139.4,139.36,0.03]
[1745234131241,0.14216157,139.38,139.36,0.03]
[1745234133508,7.31730686,139.37,139.36,0.03]
[1745234133715,25.96695572,139.37,139.36,0.03]
[1745234134131,7.31730686,139.37,139.36,0.03]
[1745234136542,18.79181043,139.36,139.34,0.5041398]
[1745234137915,7.31833666,139.35,139.34,0.5041398]
[1745234138424,25.96798552,139.35,139.34,0.5041398]
[1745234139637,40.22798552,139.35,139.34,1e-08]
[1745234142420,21.57833666,139.35,139.34,1e-08]
[1745234142829,21.43617509,139.35,139.34,1e-08]
[1745234143331,21.57833666,139.35,139.34,1e-08]
[1745234143542,14.26,139.35,139.34,1e-08]
[1745234143843,14.26,139.39,139.34,1e-08]
[1745234144042,7.17514529,139.37,139.34,1e-08]
[1745234145050,7.1746305,139.38,139.34,1.57460001]
[1745234145341,14.40216157,139.39,139.34,1.57460001]
[1745234145543,14.26,139.39,139.34,1.57460001]
[1745234146847,21.43426347,139.39,139.34,8.75114713]
[1745234148940,14.26,139.39,139.34,8.75114713]
[1745234149144,14.26,139.39,139.35,6.6542]
[1745234149652,21.43424407,139.39,139.35,6.6542]
[1745234158966,7.17424407,139.39,139.35,6.6542]
[1745234159941,0.14216157,139.39,139.35,6.6542]
[1745234160843,18.79181043,139.39,139.34,1e-08]
[1745234162249,25.11120676,139.38,139.34,1e-08]
[1745234162447,0.14216157,139.37,139.34,1e-08]
[1745234164672,0.14216157,139.35,139.34,1e-08]
[1745234165449,7.17566016,139.36,139.34,1e-08]
[1745234167668,7.31833666,139.35,139.34,1e-08]
[1745234171575,7.17514529,139.37,139.34,1e-08]
[1745234173175,7.31696616,139.38,139.34,1e-08]
[1745234173772,0.14216157,139.39,139.34,1e-08]
[1745234175281,7.31643507,139.39,139.34,1e-08]
[1745234176185,7.17377467,139.4,139.34,1e-08]
[1745234176371,7.17280781,139.42,139.35,8.2371]
[1745234176564,7.17280781,139.42,139.35,88.9371]
[1745234177470,7.17280781,139.42,139.36,7.17566016]
[1745234178571,0.14216157,139.41,139.35,88.9371]
[1745234179490,7.17360114,139.4,139.35,88.9371]
[1745234180084,7.17360114,139.4,139.34,7.17628938]
[1745234180085,0.14216157,139.39,139.34,1e-08]
[1745234181088,7.1746305,139.38,139.34,1e-08]
[1745234182900,7.31645278,139.39,139.34,1e-08]
[1745234190382,25.25174225,139.39,139.34,1e-08]
[1745234190569,26.0,139.38,139.34,1e-08]
[1745234192501,0.14216157,139.36,139.34,1e-08]
[1745234194899,7.17617509,139.35,139.34,1e-08]
[1745234195099,7.31833666,139.35,139.34,1e-08]
[1745234195300,21.65833666,139.35,139.34,1e-08]
[1745234195903,40.30798552,139.35,139.34,1e-08]
[1745234197204,18.79181043,139.34,139.33,1e-08]
[1745234198402,25.96850054,139.34,139.33,1e-08]
[1745234200102,47.48850054,139.34,139.33,1e-08]
[1745234200409,44.79181043,139.31,139.3,1e-08]
[1745234200622,18.79181043,139.3,139.28,1e-08]
[1745234200774,40.48216157,139.29,139.28,1e-08]
[1745234201179,59.13181043,139.29,139.28,1e-08]
[1745234202500,67.7903767,139.29,139.28,1e-08]
[1745234202701,47.66142784,139.29,139.28,1e-08]
[1745234203299,21.66142784,139.29,139.28,1e-08]
[1745234203803,47.51926627,139.29,139.28,1e-08]
[1745234204004,47.66142784,139.29,139.28,1e-08]
[1745234204498,66.3110767,139.29,139.28,1e-08]
[1745234206197,44.64964886,139.25,139.19,0.03]
[1745234206399,0.14216157,139.22,139.19,0.03]
[1745234207919,0.14216157,139.2,139.19,0.03]
[1745234208116,25.97571847,139.2,139.19,0.03]
[1745234208322,26.14216157,139.16,139.09,7.7835]
[1745234208506,14.88,139.15,139.09,7.7835]
[1745234208708,0.14216157,139.14,139.09,7.7835]
[1745234209037,14.88,139.15,139.09,7.7835]
[1745234209197,14.88,139.15,139.1,42.14964886]
[1745234209396,0.14216157,139.18,139.1,42.14964886]
[1745234209593,14.88,139.19,139.12,1.5566]
[1745234210024,22.06479835,139.19,139.12,8.74422781]
[1745234210222,0.14216157,139.18,139.12,1.5566]
[1745234210528,0.14216157,139.18,139.12,8.74446731]
[1745234210715,0.14216157,139.18,139.12,1.5566]
[1745234212028,0.14216157,139.18,139.11,6.2269]
[1745234212330,7.18545663,139.17,139.12,18.64964886]
[1745234212634,14.88,139.19,139.12,18.64964886]
[1745234213820,22.06458934,139.19,139.12,25.83743328]
[1745234214033,0.14216157,139.18,139.12,18.64964886]
[1745234214745,0.14216157,139.18,139.11,6.2269]
[1745234215742,25.14909821,139.17,139.11,6.2269]
[1745234216121,0.14216157,139.16,139.11,6.2269]
[1745234216420,0.14216157,139.16,139.09,1.579]
[1745234217339,0.14216157,139.16,139.1,18.64964886]
[1745234217741,7.18648939,139.15,139.09,1.579]
[1745234218047,7.18648939,139.15,139.1,18.64964886]
[1745234218638,7.3282601,139.16,139.1,18.64964886]
[1745234219448,25.29319255,139.16,139.09,1.579]
[1745234220070,25.29319255,139.16,139.1,18.64964886]
[1745234220071,7.3282601,139.16,139.1,18.64964886]
[1745234220839,25.29319255,139.16,139.09,1.579]
[1745234221344,26.0,139.15,139.09,1.579]
[1745234221550,0.14216157,139.13,139.09,1.579]
[1745234221931,7.1880391,139.12,139.09,1.579]
[1745234222654,7.1880391,139.12,139.07,18.64964886]
[1745234223332,22.06708529,139.14,139.07,18.64964886]
[1745234223941,22.06708529,139.14,139.08,7.19010641]
[1745234224146,22.06708529,139.14,139.06,1.2153786]
[1745234224147,0.14216157,139.13,139.06,1.2153786]
[1745234225437,0.14216157,139.13,139.07,18.64964886]
[1745234226033,0.14216157,139.11,139.06,1.2153786]
[1745234228040,26.14216157,139.09,139.06,1.2153786]
[1745234228349,0.14216157,139.07,139.06,1.2153786]
[1745234229435,14.9,139.08,139.06,1.2153786]
[1745234230052,22.09051996,139.08,139.06,1.2153786]
[1745234232150,14.9,139.08,139.06,1.2153786]
[1745234232554,22.09024815,139.08,139.06,1.2153786]
[1745234233361,0.14216157,139.07,139.06,1.2153786]
[1745234234143,7.33278499,139.07,139.06,1.2153786]
[1745234234744,7.33278499,139.07,139.03,0.03]
[1745234234745,25.30934355,139.07,139.03,0.03]
[1745234234944,0.14216157,139.05,139.03,0.03]
[1745234235239,0.14216157,139.05,139.0,20.0]
[1745234235240,26.0,139.03,139.0,20.0]
[1745234235445,41.04216157,139.02,139.0,20.0]
[1745234236259,7.33588863,139.01,139.0,20.0]
[1745234239259,25.98553749,139.01,139.0,20.0]
[1745234239577,51.98553749,139.01,139.0,1e-08]
[1745234240773,33.33588863,139.01,139.0,1e-08]
[1745234241361,51.98553749,139.01,139.0,1e-08]
[1745234242074,25.98553749,139.01,139.0,1e-08]
[1745234242270,0.14216157,138.96,138.92,0.03]
[1745234242479,15.46216157,138.96,138.92,0.03]
[1745234243153,15.32,138.96,138.92,0.03]
[1745234243454,7.19735137,138.94,138.92,0.03]
[1745234243658,0.14216157,138.93,138.92,0.03]
[1745234244956,87.99735137,138.94,138.92,0.03]
[1745234245154,22.51735137,138.94,138.92,0.03]
[1745234245973,15.32,138.96,138.92,0.03]
[1745234246274,15.32,138.95,138.92,0.03]
[1745234246777,0.14216157,138.97,138.92,0.03]
[1745234246959,15.46216157,138.97,138.92,0.03]
[1745234247462,7.19631548,138.96,138.92,0.03]
[1745234249485,7.19543986,138.98,138.94,6.5537]
[1745234249878,269.09492434,138.99,138.94,6.5537]
[1745234250592,0.14216157,138.98,138.94,6.5537]
[1745234251174,269.09492434,138.99,138.94,6.5537]
[1745234251881,269.09492434,138.99,138.94,13.75104574]
[1745234252082,15.32,139.02,138.94,13.75104574]
[1745234253696,22.51320961,139.02,138.94,13.75104574]
[1745234254490,7.19320961,139.02,138.94,13.75104574]
[1745234254891,7.19320961,139.02,138.96,7.19631548]
[1745234255187,7.19287945,139.03,138.96,7.19631548]
[1745234255390,22.51236566,139.04,138.97,20.16664886]
[1745234255574,22.51236566,139.04,138.98,6.2858]
[1745234255778,15.32,139.04,138.98,6.2858]
[1745234255983,7.19184921,139.05,138.99,18.64964886]
[1745234256312,246.66,139.09,138.99,18.64964886]
[1745234256313,22.51080853,139.07,138.99,18.64964886]
[1745234256893,22.51080853,139.07,139.0,7.1942446]
[1745234257198,26.14216157,139.05,138.97,1.517]
[1745234257392,0.14216157,139.03,138.97,1.517]
[1745234258696,7.19320961,139.02,138.97,1.517]
[1745234259487,22.65433648,139.04,138.97,34.71275744]
[1745234259687,7.19217491,139.04,138.98,6.2858]
[1745234260590,17.97820345,139.06,138.99,18.64964886]
[1745234260591,7.19114051,139.06,138.99,18.64964886]
[1745234261392,22.51079752,139.07,138.99,18.64964886]
[1745234262091,22.5107042,139.07,139.02,26.0]
[1745234263003,15.32,139.07,139.04,6.2858]
[1745234263378,0.063,139.08,139.04,6.2858]
[1745234263776,0.063,139.08,139.05,18.64964886]
[1745234264297,0.063,139.08,139.07,44.64964886]
[1745234264704,0.063,139.08,139.07,51.84027228]
[1745234265079,0.063,139.08,139.07,26.0]
[1745234265484,0.063,139.08,139.05,80.7]
[1745234265792,0.063,139.08,139.04,6.2858]
[1745234275315,0.20516157,139.08,139.01,6.0563]
[1745234277296,25.16718198,139.07,139.01,6.0563]
[1745234279529,7.19062342,139.07,139.01,13.24993061]
[1745234280122,7.19062342,139.07,139.01,6.0563]
[1745234280320,0.14216157,139.06,139.01,6.0563]
[1745234281195,25.16718198,139.07,139.01,6.0563]
[1745234281723,7.19062342,139.07,139.01,13.25001356]
[1745234281930,7.19062342,139.07,139.02,18.64964886]
[1745234283036,0.063,139.08,139.02,25.84271891]
[1745234283208,0.063,139.08,139.03,1.5928]
[1745234284228,0.063,139.08,139.04,7.19217491]
[1745234285123,0.063,139.08,139.05,18.64964886]
[1745234285325,0.063,139.08,139.07,18.64964886]
[1745234286228,0.063,139.08,139.07,25.84027228]
[1745234287722,0.063,139.08,139.06,6.0563]
[1745234288315,0.063,139.08,139.06,32.0563]
[1745234289401,0.063,139.08,139.07,18.64964886]
[1745234289808,0.063,139.08,139.07,25.84027228]
[1745234290527,0.063,139.08,139.07,18.64964886]
[1745234290701,0.063,139.08,139.06,32.0563]
[1745234291843,0.063,139.08,139.07,25.84027228]
[1745234292136,0.063,139.08,139.07,18.64964886]
[1745234293150,0.063,139.08,139.07,25.84027228]
[1745234294952,0.063,139.08,139.07,27.35507228]
[1745234298430,0.063,139.08,139.07,108.05507228]
[1745234300434,0.063,139.08,139.07,134.05507228]
[1745234305254,0.063,139.08,139.06,6.0563]
[1745234305434,0.063,139.08,139.05,18.64964886]
[1745234306555,0.063,139.08,139.05,44.64964886]
[1745234306737,0.063,139.08,139.05,18.64964886]
[1745234307154,0.063,139.08,139.04,80.7]
[1745234307357,0.063,139.08,139.04,18.64964886]
[1745234308352,0.063,139.08,139.04,25.84143224]
[1745234309057,0.063,139.08,139.04,18.64964886]
[1745234310861,0.063,139.08,139.03,26.0]
[1745234311164,0.063,139.08,139.03,18.64964886]
[1745234319445,0.063,139.08,139.03,25.84229127]
[1745234321859,0.063,139.08,139.03,106.54229127]
[1745234323182,0.063,139.08,139.05,18.64964886]
[1745234323790,0.063,139.08,139.05,99.34964886]
[1745234324864,0.063,139.08,139.07,44.64964886]
[1745234325987,0.063,139.08,139.07,51.84027228]
[1745234326285,0.063,139.08,139.07,140.17647228]
[1745234328923,0.063,139.08,139.07,132.98584886]
[1745234329709,0.063,139.08,139.07,140.17647228]
[1745234330491,0.063,139.08,139.07,132.98584886]
[1745234332512,0.063,139.08,139.07,140.17647228]
[1745234337789,0.063,139.08,139.07,140.31863385]
[1745234338191,0.063,139.08,139.07,140.17647228]
[1745234340422,0.063,139.08,139.07,125.34964886]
[1745234342310,0.063,139.08,139.07,44.64964886]
[1745234345822,0.063,139.08,139.05,18.64964886]
[1745234346418,0.063,139.08,139.02,18.64964886]
[1745234346718,0.063,139.08,139.02,44.64964886]
[1745234347901,0.063,139.08,139.02,25.84283784]
[1745234348325,0.063,139.08,139.02,51.84283784]
[1745234353036,8.67014799,139.07,139.02,44.64964886]
[1745234353340,8.67014799,139.07,139.02,18.64964886]
[1745234353511,0.14216157,139.06,139.0,26.0]
[1745234353829,0.14216157,139.06,138.98,44.64964886]
[1745234354714,0.14216157,139.06,138.98,18.64964886]
[1745234354916,0.14216157,139.03,138.97,80.7]
[1745234355118,7.19320961,139.02,138.97,18.64964886]
[1745234355833,7.19217491,139.04,138.98,18.64964886]
[1745234356511,25.17261219,139.04,138.98,18.64964886]
[1745234360645,0.14216157,139.03,138.97,26.0]
[1745234362128,25.17623363,139.02,138.95,18.64964886]
[1745234368042,25.17985611,139.0,138.94,26.03]
[1745234368240,40.81985611,139.0,138.94,26.03]
[1745234370648,22.8342446,139.0,138.95,18.64964886]
[1745234370937,15.64,139.0,138.95,18.64964886]
[1745234371462,22.83427364,139.0,138.95,18.64964886]
[1745234371747,7.19390593,139.01,138.95,18.64964886]
[1745234372041,25.17566101,139.03,138.96,7.19631548]
[1745234373341,25.17566101,139.03,138.95,106.54638955]
[1745234375942,0.14216157,139.02,138.95,99.34964886]
[1745234376337,25.17566101,139.03,138.95,99.34964886]
[1745234377548,25.17566101,139.03,138.95,18.64964886]
[1745234382650,25.17566101,139.03,138.94,0.03]
[1745234382651,0.14216157,139.02,138.94,0.03]
[1745234383655,25.17804473,139.01,138.94,0.03]
[1745234385467,0.14216157,139.0,138.94,0.03]
[1745234385633,15.64,138.99,138.94,0.03]
[1745234386333,0.14216157,138.98,138.94,0.03]
[1745234387949,25.18529178,138.97,138.94,0.03]
[1745234392658,0.14216157,138.96,138.94,0.03]
[1745234393766,7.19683339,138.95,138.94,0.03]
[1745234396055,7.33847705,138.96,138.94,0.03]
[1745234397862,1.62146157,138.95,138.92,1e-08]
[1745234398041,7.340031,138.93,138.92,1e-08]
[1745234399141,26.0,138.9,138.89,1e-08]
[1745234399360,26.14216157,138.85,138.79,1.1853786]
[1745234399557,0.14216157,138.83,138.79,1.1853786]
[1745234400072,7.20357297,138.82,138.79,1.1853786]
[1745234400360,25.2125054,138.82,138.79,1.1853786]
[1745234400563,25.2125054,138.82,138.73,7.53172168]
[1745234400772,25.2125054,138.82,138.73,26.0]
[1745234401078,25.2125054,138.82,138.72,6.588]
[1745234401079,0.14216157,138.81,138.72,6.588]
[1745234402161,25.21613832,138.8,138.72,6.588]
[1745234402554,7.20305409,138.83,138.76,18.64964886]
[1745234403043,7.20305409,138.83,138.75,26.0]
[1745234403241,7.20305409,138.83,138.72,5.588]
[1745234403242,0.14216157,138.82,138.72,5.588]
[1745234403865,0.14216157,138.82,138.72,7.2261]
[1745234404056,0.14216157,138.8,138.72,7.2261]
[1745234404455,0.14216157,138.78,138.72,5.588]
[1745234404968,15.46,138.79,138.72,5.588]
[1745234406175,7.20564922,138.78,138.72,5.588]
[1745234406946,7.20564922,138.78,138.72,12.79674432]
[1745234407271,22.66530515,138.79,138.73,18.64964886]
[1745234407964,96.25,138.83,138.75,18.64964886]
[1745234408198,7.20357297,138.82,138.75,25.85665333]
[1745234408348,22.68323073,138.83,138.75,25.85665333]
[1745234408549,15.48,138.83,138.78,18.64964886]
[1745234408782,7.20097933,138.87,138.8,18.64964886]
[1745234408952,22.68061253,138.88,138.8,125.34964886]
[1745234409157,22.68061253,138.88,138.82,18.64964886]
[1745234409767,15.48,138.92,138.82,18.64964886]
[1745234409970,15.48,138.92,138.82,99.34964886]
[1745234410164,7.19890576,138.91,138.83,7.20305409]
[1745234412191,7.19890576,138.91,138.83,33.20305409]
[1745234412485,7.19890576,138.91,138.83,7.20305409]
[1745234412958,25.19617017,138.91,138.82,25.85302867]
[1745234413164,25.19617017,138.91,138.83,18.64964886]
[1745234413375,0.14216157,138.9,138.82,18.64964886]
[1745234414182,26.0,138.88,138.82,18.64964886]
[1745234414578,7.20097933,138.87,138.82,18.64964886]
[1745234415768,7.20097933,138.87,138.81,1.5893]
[1745234416275,25.20342766,138.87,138.8,18.64964886]
[1745234416476,25.20342766,138.87,138.8,25.85416668]
[1745234416669,7.20097933,138.87,138.8,25.85416668]
[1745234417471,7.20097933,138.87,138.8,18.64964886]
[1745234417767,26.0,138.84,138.75,87.2002]
[1745234418166,0.14216157,138.83,138.75,6.5002]
[1745234419100,25.2125054,138.82,138.75,6.5002]
[1745234420708,25.2125054,138.82,138.76,18.64964886]
[1745234420709,7.20357297,138.82,138.76,18.64964886]
[1745234421204,25.2125054,138.82,138.76,18.64964886]
[1745234422497,0.14216157,138.81,138.75,87.2002]
[1745234422692,0.14216157,138.81,138.75,6.5002]
[1745234423278,25.21613832,138.8,138.75,6.5002]
[1745234424288,7.20461095,138.8,138.75,6.5002]
[1745234425193,15.96,138.82,138.75,6.5002]
[1745234425194,7.20409192,138.81,138.75,6.5002]
[1745234425910,25.21432173,138.81,138.75,6.5002]
[1745234426810,7.20409192,138.81,138.76,18.64964886]
[1745234427383,18.00897153,138.82,138.76,18.64964886]
[1745234429496,25.20887352,138.84,138.76,18.64964886]
[1745234430202,0.14216157,138.83,138.75,87.2002]
[1745234431086,25.20887352,138.84,138.76,18.64964886]
[1745234432208,25.20887352,138.84,138.76,99.34964886]
[1745234432509,25.20887352,138.84,138.76,106.55621281]
[1745234432816,7.20253529,138.84,138.76,106.55621281]
[1745234433324,80.77,138.9,138.8,18.64964886]
[1745234433325,7.20149791,138.86,138.8,18.64964886]
[1745234433492,7.1999424,138.89,138.82,18.64964886]
[1745234433809,7.1999424,138.89,138.83,1.6142]
[1745234434783,25.19435646,138.92,138.83,1.6142]
[1745234435116,0.14216157,138.91,138.83,82.3142]
[1745234436817,26.0,138.89,138.83,1.6142]
[1745234437109,26.0,138.89,138.82,18.64964886]
[1745234437312,25.19798415,138.9,138.82,18.64964886]
[1745234439507,61.19510438,138.9,138.82,18.64964886]
[1745234440421,0.14216157,138.89,138.81,80.7]
[1745234440736,17.71106157,138.89,138.81,80.7]
[1745234440893,25.20161289,138.88,138.81,80.7]
[1745234444799,26.14216157,138.87,138.79,6.2799]
[1745234445231,25.20524268,138.86,138.79,6.2799]
[1745234447404,61.20391703,138.88,138.79,6.2799]
[1745234448024,25.20161289,138.88,138.79,13.48485271]
[1745234448326,25.20161289,138.88,138.79,94.18485271]
[1745234450913,25.20161289,138.88,138.79,86.9799]
[1745234451532,25.20161289,138.88,138.79,94.18483594]
[1745234454319,25.20161289,138.88,138.79,86.9799]
[1745234454542,25.20161289,138.88,138.79,94.18501107]
[1745234454908,0.14216157,138.87,138.79,86.9799]
[1745234455103,61.20391703,138.88,138.8,18.64964886]
[1745234455530,25.20161289,138.88,138.8,18.64964886]
[1745234456728,25.20161289,138.88,138.8,99.34964886]
[1745234458931,25.20161289,138.88,138.8,106.55399535]
[1745234459947,7.20046082,138.88,138.8,106.55399535]
[1745234460636,106.77,138.91,138.8,106.55399535]
[1745234460637,25.19450959,138.92,138.83,18.64964886]
[1745234460939,7.19838756,138.92,138.84,7.20253529]
[1745234461127,7.19838756,138.92,138.86,18.64964886]
[1745234461433,7.19838756,138.92,138.86,99.34964886]